[Event "7th Leer Open-B 2024"]
[Site "Leer"]
[Date "2024.10.31"]
[Round "1.8"]
[White "Rabe, Elina"]
[Black "Juergenpott, Maximilian"]
[Result "0-1"]
[ECO "B12"]
[WhiteElo "1515"]
[BlackElo "1678"]
[Annotator "NA RC"]
[PlyCount "66"]
[EventDate "2024.10.14"]
[EventType "swiss"]
[EventCountry "GER"]
[SourceTitle "playchess.com"]
[Source "ChessBase"]
[SourceQuality "1"]
[TimeControl "40/5400+30:900+30"]

1. e4 {[%emt 0:00:01]} c6 {[%emt 0:00:11]} 2. d4 {[%emt 0:00:07]} d5 {[%emt 0:00:06]} 3. f3 {[%emt 0:00:06]} dxe4 {[%emt 0:00:41]} 4. fxe4 {[%emt 0:00:03]} e5 {[%emt 0:00:11]} 5. Nf3 {[%emt 0:01:00]} Bg4 {[%emt 0:00:08]} 6. Be2 {[%emt 0:00:26]} Bxf3 {[%emt 0:03:07]} 7. Bxf3 {[%emt 0:02:59]} Qxd4 {[%emt 0:02:15]} 8. Qxd4 {[%emt 0:00:49]} exd4 {[%emt 0:00:09]} 9. O-O {[%emt 0:00:09]} Bc5 {[%emt 0:00:22]} 10. Kh1 {[%emt 0:00:36]} Nd7 {[%emt 0:01:28]} 11. Bf4 {[%emt 0:00:59]} O-O-O {[%emt 0:02:59]} 12. Nd2 {[%emt 0:01:22]} Be7 {[%emt 0:09:41]} 13. Rad1 {[%emt 0:04:34]} g5 {[%emt 0:00:46]} 14. Bg3 {[%emt 0:00:56]} h5 {[%emt 0:00:18]} 15. Bf2 {[%emt 0:01:15]} g4 {[%emt 0:00:26]} 16. Bxd4 {[%emt 0:02:05]} Ndf6 {[%emt 0:04:38]} 17. Bxf6 {[%emt 0:01:08]} Bxf6 {[%emt 0:00:06]} 18. Be2 {[%emt 0:00:39]} Bxb2 {[%emt 0:00:09]} 19. Rxf7 {[%emt 0:00:35]} Nf6 {[%emt 0:00:25]} 20. Nc4 {[%emt 0:06:59]} Rxd1+ {[%emt 0:01:53]} 21. Bxd1 {[%emt 0:00:02]} Bc3 {[%emt 0:02:44]} 22. Nd6+ {[%emt 0:05:28]} Kb8 {[%emt 0:00:08]} 23. Rxb7+ {[%emt 0:00:49]} Ka8 {[%emt 0:00:05]} 24. Rc7 {[%emt 0:02:56]} Rd8 {[%emt 0:00:49]} 25. Rxc6 {[%emt 0:00:47]} Nxe4 {[%emt 0:00:16]} 26. Be2 {[%emt 0:07:13]} Rxd6 {[%emt 0:00:40]} 27. Rc4 {[%emt 0:00:52]} Rd4 {[%emt 0:01:50]} 28. Rc8+ {[%emt 0:01:47]} Kb7 {[%emt 0:00:09]} 29. Rh8 {[%emt 0:00:10]} Rd2 {[%emt 0:04:51]} 30. Rh7+ {[%emt 0:01:37]} Kb6 {[%emt 0:00:07]} 31. Bf1 {[%emt 0:00:28]} Rd1 {[%emt 0:00:13]} 32. Rf7 {[%emt 0:00:15]} Nf6 {[%emt 0:00:17]} 33. g3 {[%emt 0:01:32]} Rxf1+ {[%emt 0:00:13]} 0-1

[Event "7th Leer Open-B 2024"]
[Site "Leer"]
[Date "2024.10.31"]
[Round "1.9"]
[White "Voigt, Dominik"]
[Black "Kandora, William"]
[Result "1-0"]
[ECO "C42"]
[WhiteElo "1781"]
[BlackElo "1631"]
[Annotator "NA RC"]
[PlyCount "103"]
[EventDate "2024.10.14"]
[EventType "swiss"]
[EventCountry "GER"]
[SourceTitle "playchess.com"]
[Source "ChessBase"]
[SourceQuality "1"]
[TimeControl "40/5400+30:900+30"]

1. e4 {[%emt 0:00:02]} e5 {[%emt 0:00:07]} 2. Nf3 {[%emt 0:00:04]} Nf6 {[%emt 0:00:05]} 3. Nxe5 {[%emt 0:00:08]} d6 {[%emt 0:00:06]} 4. Nf3 {[%emt 0:00:05]} Nxe4 {[%emt 0:00:08]} 5. d4 {[%emt 0:00:09]} Bf5 {[%emt 0:00:10]} 6. Bd3 {[%emt 0:00:37]} d5 {[%emt 0:00:10]} 7. O-O {[%emt 0:00:31]} Be7 {[%emt 0:00:14]} 8. Re1 {[%emt 0:02:36]} O-O {[%emt 0:00:30]} 9. Nbd2 {[%emt 0:02:22]} Nxd2 {[%emt 0:02:37]} 10. Bxf5 {[%emt 0:03:51]} Nxf3+ {[%emt 0:00:09]} 11. Qxf3 {[%emt 0:00:38]} c6 {[%emt 0:00:55]} 12. Qh3 {[%emt 0:02:09]} g6 {[%emt 0:00:21]} 13. Bd3 {[%emt 0:00:54]} Bf6 {[%emt 0:00:19]} 14. Bh6 {[%emt 0:04:26]} Re8 {[%emt 0:00:44]} 15. c3 {[%emt 0:01:12]} Nd7 {[%emt 0:00:18]} 16. Re3 {[%emt 0:03:50]} Rxe3 {[%emt 0:01:02]} 17. Bxe3 {[%emt 0:01:49]} Bg7 {[%emt 0:00:14]} 18. Re1 {[%emt 0:01:39]} Nf6 {[%emt 0:00:30]} 19. Bg5 {[%emt 0:05:30]} Qd6 {[%emt 0:00:36]} 20. Qf3 {[%emt 0:04:14]} Rc8 {[%emt 0:02:24]} 21. h4 {[%emt 0:04:28]} h5 {[%emt 0:00:49]} 22. g3 {[%emt 0:03:21]} Ng4 {[%emt 0:00:34]} 23. Qe2 {[%emt 0:06:03]} c5 {[%emt 0:01:21]} 24. Be7 {[%emt 0:03:21]} Qd7 {[%emt 0:01:51]} 25. Bxc5 {[%emt 0:00:43]} b6 {[%emt 0:00:22]} 26. Ba3 {[%emt 0:01:04]} Bf6 {[%emt 0:04:12]} 27. Kg2 {[%emt 0:03:09]} Kg7 {[%emt 0:04:02]} 28. Qf3 {[%emt 0:05:44]} Rg8 {[%emt 0:01:45]} 29. Bc2 {[%emt 0:01:47]} Kh6 {[%emt 0:00:32]} 30. Bb3 {[%emt 0:02:35]} g5 {[%emt 0:00:54]} 31. Qxd5 {[%emt 0:07:49]} Qxd5+ {[%emt 0:00:11]} 32. Bxd5 {[%emt 0:00:05]} gxh4 {[%emt 0:00:08]} 33. Bxf7 {[%emt 0:00:39]} Rg7 {[%emt 0:00:14]} 34. Bf8 {[%emt 0:00:26]} hxg3 {[%emt 0:00:17]} 35. fxg3 {[%emt 0:00:43]} Kh7 {[%emt 0:00:43]} 36. Bxg7 {[%emt 0:00:47]} Kxg7 {[%emt 0:00:06]} 37. Bxh5 {[%emt 0:00:59]} Nh6 {[%emt 0:00:12]} 38. g4 {[%emt 0:02:38]} Kf8 {[%emt 0:00:46]} 39. d5 {[%emt 0:01:35]} Nf7 {[%emt 0:00:14]} 40. Rf1 {[%emt 0:01:28]} Kg7 {[%emt 0:00:34]} 41. Bxf7 {[%emt 0:15:13]} a5 {[%emt 0:15:19]} 42. Be6 {[%emt 0:01:36]} b5 {[%emt 0:00:11]} 43. d6 {[%emt 0:00:18]} Bd8 {[%emt 0:00:10]} 44. d7 {[%emt 0:00:21]} b4 {[%emt 0:00:06]} 45. Rf7+ {[%emt 0:01:39]} Kg6 {[%emt 0:00:11]} 46. Rf8 {[%emt 0:00:28]} bxc3 {[%emt 0:00:09]} 47. Rxd8 {[%emt 0:00:59]} c2 {[%emt 0:00:09]} 48. Rc8 {[%emt 0:00:21]} a4 {[%emt 0:00:10]} 49. d8=Q {[%emt 0:00:52]} a3 {[%emt 0:00:11]} 50. Bf5+ {[%emt 0:01:28]} Kh6 {[%emt 0:00:10]} 51. Qg8 {[%emt 0:02:40]} c1=Q {[%emt 0:00:54]} 52. Qg6# {[%emt 0:00:10]} 1-0

[Event "7th Leer Open-B 2024"]
[Site "Leer"]
[Date "2024.10.31"]
[Round "1.9"]
[White "Fels, Mattis"]
[Black "Wessels, Keke"]
[Result "1-0"]
[ECO "B07"]
[WhiteElo "1714"]
[BlackElo "1508"]
[Annotator "NA RC"]
[PlyCount "38"]
[EventDate "2024.10.14"]
[EventType "swiss"]
[EventCountry "GER"]
[SourceTitle "playchess.com"]
[Source "ChessBase"]
[SourceQuality "1"]
[TimeControl "40/5400+30:900+30"]

1. d4 {[%emt 0:00:02]} Nf6 {[%emt 0:00:00]} 2. Nc3 {[%emt 0:00:06]} g6 {[%emt 0:00:02]} 3. Bf4 {[%emt 0:00:21]} Bg7 {[%emt 0:00:29]} 4. e4 {[%emt 0:00:16]} d6 {[%emt 0:00:33]} 5. Qd2 {[%emt 0:00:27]} O-O {[%emt 0:00:45]} 6. O-O-O {[%emt 0:00:41]} Nbd7 {[%emt 0:05:15]} 7. f3 {[%emt 0:02:24]} Re8 {[%emt 0:06:09]} 8. Bh6 {[%emt 0:01:31]} Bh8 {[%emt 0:01:10]} 9. e5 {[%emt 0:07:34]} Nh5 {[%emt 0:05:20]} 10. g4 {[%emt 0:02:34]} Ng7 {[%emt 0:01:43]} 11. Bc4 {[%emt 0:02:07]} b6 {[%emt 0:03:11]} 12. Qf4 {[%emt 0:13:33]} Ne6 {[%emt 0:06:43]} 13. Bxe6 {[%emt 0:01:34]} fxe6 {[%emt 0:00:36]} 14. Qe4 {[%emt 0:00:33]} Rb8 {[%emt 0:01:33]} 15. h4 {[%emt 0:03:10]} dxe5 {[%emt 0:03:02]} 16. dxe5 {[%emt 0:00:20]} Bb7 {[%emt 0:02:12]} 17. Qc4 {[%emt 0:01:05]} Bxe5 {[%emt 0:05:20]} 18. Qxe6+ {[%emt 0:00:20]} Kh8 {[%emt 0:00:11]} 19. Rxd7 {[%emt 0:00:09]} Bf4+ {[%emt 0:01:02]} 1-0

[Event "7th Leer Open-B 2024"]
[Site "Leer"]
[Date "2024.10.31"]
[Round "1.9"]
[White "Rabe, Elina"]
[Black "Juergenpott, Maximilian"]
[Result "*"]
[ECO "B07"]
[WhiteElo "1515"]
[BlackElo "1678"]
[Annotator "NA RC"]
[PlyCount "21"]
[EventDate "2024.10.14"]
[EventType "swiss"]
[EventCountry "GER"]
[SourceTitle "playchess.com"]
[Source "ChessBase"]
[SourceQuality "1"]
[TimeControl "40/5400+30:900+30"]

1. d4 {[%emt 0:00:02]} Nf6 {[%emt 0:00:00]} 2. Nc3 {[%emt 0:00:06]} g6 {[%emt 0:00:02]} 3. Bf4 {[%emt 0:00:21]} Bg7 {[%emt 0:00:29]} 4. e4 {[%emt 0:00:16]} d6 {[%emt 0:00:33]} 5. Qd2 {[%emt 0:00:27]} O-O {[%emt 0:00:45]} 6. O-O-O {[%emt 0:00:41]} Nbd7 {[%emt 0:05:15]} 7. f3 {[%emt 0:02:24]} Re8 {[%emt 0:06:09]} 8. Bh6 {[%emt 0:01:31]} Bh8 {[%emt 0:01:10]} 9. e5 {[%emt 0:07:34]} Nh5 {[%emt 0:05:20]} 10. g4 {[%emt 0:02:34]} Ng7 {[%emt 0:01:43]} 11. Bc4 {[%emt 0:02:07]} *

[Event "7th Leer Open-B 2024"]
[Site "Leer"]
[Date "2024.10.31"]
[Round "1.10"]
[White "Fels, Mattis"]
[Black "Wessels, Keke"]
[Result "*"]
[ECO "D10"]
[WhiteElo "1714"]
[BlackElo "1508"]
[Annotator "NA RC"]
[PlyCount "26"]
[EventDate "2024.10.14"]
[EventType "swiss"]
[EventCountry "GER"]
[SourceTitle "playchess.com"]
[Source "ChessBase"]
[SourceQuality "1"]
[TimeControl "40/5400+30:900+30"]

1. d4 {[%emt 0:00:03]} d5 {[%emt 0:00:04]} 2. c4 {[%emt 0:00:09]} e6 {[%emt 0:00:04]} 3. e3 {[%emt 0:00:14]} c6 {[%emt 0:00:54]} 4. cxd5 {[%emt 0:00:13]} exd5 {[%emt 0:00:31]} 5. Nf3 {[%emt 0:00:18]} Bg4 {[%emt 0:00:39]} 6. Qd3 {[%emt 0:00:59]} Bd6 {[%emt 0:05:18]} 7. h3 {[%emt 0:01:32]} Bh5 {[%emt 0:01:27]} 8. Be2 {[%emt 0:00:55]} Nf6 {[%emt 0:01:25]} 9. Ne5 {[%emt 0:02:02]} Bxe2 {[%emt 0:03:14]} 10. Qxe2 {[%emt 0:00:25]} Qc7 {[%emt 0:03:10]} 11. f4 {[%emt 0:01:29]} Ne4 {[%emt 0:02:18]} 12. Qg4 {[%emt 0:02:26]} O-O {[%emt 0:09:23]} 13. Nc3 {[%emt 0:00:27]} Bb4 {[%emt 0:02:03]} *

[Event "7th Leer Open-B 2024"]
[Site "Leer"]
[Date "2024.10.31"]
[Round "1.10"]
[White "Zanner, Marcel"]
[Black "Marzik, Arne"]
[Result "0-1"]
[ECO "D35"]
[WhiteElo "1628"]
[BlackElo "1780"]
[Annotator "NA RC"]
[PlyCount "78"]
[EventDate "2024.10.14"]
[EventType "swiss"]
[EventCountry "GER"]
[SourceTitle "playchess.com"]
[Source "ChessBase"]
[SourceQuality "1"]
[TimeControl "40/5400+30:900+30"]

1. d4 {[%emt 0:00:05]} d5 {[%emt 0:00:16]} 2. c4 {[%emt 0:00:22]} e6 {[%emt 0:00:06]} 3. Nc3 {[%emt 0:01:13]} Nf6 {[%emt 0:00:39]} 4. cxd5 {[%emt 0:01:30]} exd5 {[%emt 0:00:11]} 5. Bf4 {[%emt 0:03:49]} c6 {[%emt 0:01:14]} 6. e3 {[%emt 0:01:06]} Be7 {[%emt 0:03:28]} 7. h3 {[%emt 0:00:56]} Bf5 {[%emt 0:03:31]} 8. Bd3 {[%emt 0:00:17]} Bxd3 {[%emt 0:00:20]} 9. Qxd3 {[%emt 0:00:12]} Nbd7 {[%emt 0:02:14]} 10. Nge2 {[%emt 0:02:54]} O-O {[%emt 0:01:59]} 11. O-O {[%emt 1:23:36]} Ne8 {[%emt 0:03:09]} 12. f3 {[%emt 0:00:00]} Nc7 {[%emt 0:17:48]} 13. e4 {[%emt 0:00:00]} dxe4 {[%emt 0:00:25]} 14. fxe4 {[%emt 0:00:00]} Ne6 {[%emt 0:00:13]} 15. Bh2 {[%emt 0:00:00]} Nf6 {[%emt 0:02:20]} 16. Rad1 {[%emt 0:00:00]} Qb6 {[%emt 0:02:52]} 17. Kh1 {[%emt 0:00:00]} Rad8 {[%emt 0:03:09]} 18. Be5 {[%emt 0:00:00]} Rd7 {[%emt 0:15:47]} 19. Qg3 {[%emt 0:00:00]} Qd8 {[%emt 0:06:08]} 20. b4 {[%emt 0:00:00]} Nh5 {[%emt 0:01:15]} 21. Qg4 {[%emt 0:00:00]} Nf6 {[%emt 0:01:34]} 22. Qg3 $18 {[%emt 0:00:00]} a6 {[%emt 0:03:09]} 23. h4 {[%emt 0:00:00]} Nh5 {[%emt 0:01:55]} 24. Qg4 {[%emt 0:00:00]} g6 {[%emt 0:00:48]} 25. d5 {[%emt 0:00:00]} cxd5 {[%emt 0:01:18]} 26. exd5 {[%emt 0:00:00]} Nc7 {[%emt 0:03:00]} 27. Nf4 {[%emt 0:00:00]} Nxf4 {[%emt 0:00:36]} 28. Rxf4 {[%emt 0:00:00]} Bd6 {[%emt 0:06:21]} 29. Bf6 {[%emt 0:00:00]} Qc8 {[%emt 0:04:09]} 30. Rf5 {[%emt 0:00:00]} Ne8 {[%emt 0:01:25]} 31. Ne4 {[%emt 0:00:00]} Ng7 {[%emt 0:01:35]} 32. Nxd6 {[%emt 0:00:00]} Rxd6 {[%emt 0:00:40]} 33. Rf4 {[%emt 0:00:00]} Qxg4 {[%emt 0:00:20]} 34. Rxg4 {[%emt 0:00:00]} Rxf6 {[%emt 0:00:15]} 35. d6 {[%emt 0:00:00]} Rd8 {[%emt 0:00:41]} 36. d7 {[%emt 0:00:00]} Ne6 {[%emt 0:01:17]} 37. Rc4 {[%emt 0:00:00]} Kf8 {[%emt 0:01:49]} 38. Rc8 {[%emt 0:13:30]} Ke7 {[%emt 0:00:30]} 39. a4 {[%emt 0:00:00]} Rf4 {[%emt 0:01:35]} 0-1

[Event "7th Leer Open-B 2024"]
[Site "Leer"]
[Date "2024.10.31"]
[Round "1.10"]
[White "Heeren, Ragnar"]
[Black "Margaryan, Venera"]
[Result "0-1"]
[ECO "D10"]
[WhiteElo "1503"]
[BlackElo "1712"]
[Annotator "NA RC"]
[PlyCount "78"]
[EventDate "2024.10.14"]
[EventType "swiss"]
[EventCountry "GER"]
[SourceTitle "playchess.com"]
[Source "ChessBase"]
[SourceQuality "1"]
[TimeControl "40/5400+30:900+30"]

1. d4 {[%emt 0:00:03]} d5 {[%emt 0:00:04]} 2. c4 {[%emt 0:00:09]} e6 {[%emt 0:00:04]} 3. e3 {[%emt 0:00:14]} c6 {[%emt 0:00:54]} 4. cxd5 {[%emt 0:00:13]} exd5 {[%emt 0:00:31]} 5. Nf3 {[%emt 0:00:18]} Bg4 {[%emt 0:00:39]} 6. Qd3 {[%emt 0:00:59]} Bd6 {[%emt 0:05:18]} 7. h3 {[%emt 0:01:32]} Bh5 {[%emt 0:01:27]} 8. Be2 {[%emt 0:00:55]} Nf6 {[%emt 0:01:25]} 9. Ne5 {[%emt 0:02:02]} Bxe2 {[%emt 0:03:14]} 10. Qxe2 {[%emt 0:00:25]} Qc7 {[%emt 0:03:10]} 11. f4 {[%emt 0:01:29]} Ne4 {[%emt 0:02:18]} 12. Qg4 {[%emt 0:02:26]} O-O {[%emt 0:09:23]} 13. Nc3 {[%emt 0:00:27]} Bb4 {[%emt 0:02:03]} 14. Bd2 {[%emt 0:03:17]} Nxd2 {[%emt 0:04:55]} 15. Kxd2 {[%emt 0:00:39]} Qe7 {[%emt 0:04:16]} 16. a3 {[%emt 0:01:05]} Bd6 {[%emt 0:00:46]} 17. Rhf1 {[%emt 0:00:27]} Re8 {[%emt 0:02:06]} 18. Rae1 {[%emt 0:02:22]} f6 {[%emt 0:01:51]} 19. Nd3 {[%emt 0:01:22]} Nd7 {[%emt 0:01:18]} 20. Rf3 {[%emt 0:00:48]} Nb6 {[%emt 0:02:26]} 21. b4 {[%emt 0:03:59]} Nc4+ {[%emt 0:01:18]} 22. Kc2 {[%emt 0:06:37]} Nxa3+ {[%emt 0:01:39]} 23. Kb3 {[%emt 0:00:56]} Nc4 {[%emt 0:02:04]} 24. Nd1 {[%emt 0:00:56]} Nd2+ {[%emt 0:00:30]} 25. Kc3 {[%emt 0:00:49]} Nxf3 {[%emt 0:00:49]} 26. Qxf3 {[%emt 0:00:10]} Qe4 {[%emt 0:05:16]} 27. Qg4 {[%emt 0:00:50]} Re7 {[%emt 0:02:01]} 28. Rf1 {[%emt 0:00:42]} Qe6 {[%emt 0:03:56]} 29. Nc5 {[%emt 0:02:39]} Qxg4 {[%emt 0:01:05]} 30. hxg4 {[%emt 0:00:15]} a5 {[%emt 0:04:42]} 31. bxa5 {[%emt 0:01:12]} Bxc5 {[%emt 0:00:52]} 32. dxc5 $17 {[%emt 0:00:15]} Rxa5 {[%emt 0:00:05]} 33. Kb4 {[%emt 0:00:56]} Ra2 {[%emt 0:01:10]} 34. Rf2 {[%emt 0:00:24]} Rxf2 {[%emt 0:00:14]} 35. Nxf2 {[%emt 0:00:06]} Rxe3 {[%emt 0:00:13]} 36. Ka5 {[%emt 0:00:20]} Re2 {[%emt 0:00:34]} 37. Nd3 {[%emt 0:00:16]} Re3 {[%emt 0:01:57]} 38. Nc1 {[%emt 0:00:16]} Rc3 {[%emt 0:00:32]} 39. Ne2 {[%emt 0:00:15]} Rxc5+ {[%emt 0:00:21]} 0-1

[Event "7th Leer Open-B 2024"]
[Site "Leer"]
[Date "2024.10.31"]
[Round "1.11"]
[White "Uhlenbrock, Sven"]
[Black "Margaryan, Mari"]
[Result "1-0"]
[ECO "D00"]
[WhiteElo "1781"]
[BlackElo "1620"]
[Annotator "NA RC"]
[PlyCount "85"]
[EventDate "2024.10.14"]
[EventType "swiss"]
[EventCountry "GER"]
[SourceTitle "playchess.com"]
[Source "ChessBase"]
[SourceQuality "1"]
[TimeControl "40/5400+30:900+30"]

1. d4 {[%emt 0:00:09]} d5 {[%emt 0:00:05]} 2. Bf4 {[%emt 0:00:21]} Nf6 {[%emt 0:00:39]} 3. e3 {[%emt 0:00:24]} Bf5 {[%emt 0:00:19]} 4. c4 {[%emt 0:01:11]} e6 {[%emt 0:00:17]} 5. Nc3 {[%emt 0:00:44]} c5 {[%emt 0:00:56]} 6. Qa4+ {[%emt 0:27:19]} Qd7 {[%emt 0:02:29]} 7. Qxd7+ {[%emt 0:02:14]} Nbxd7 {[%emt 0:00:10]} 8. Nb5 {[%emt 0:01:54]} Kd8 {[%emt 0:02:06]} 9. Bc7+ {[%emt 0:24:03]} Kc8 {[%emt 0:01:06]} 10. Bd6 {[%emt 0:00:48]} Ne8 {[%emt 0:12:59]} 11. Bxf8 {[%emt 0:05:32]} Rxf8 {[%emt 0:00:17]} 12. cxd5 {[%emt 0:01:16]} exd5 {[%emt 0:00:44]} 13. dxc5 {[%emt 0:00:34]} Nxc5 {[%emt 0:00:31]} 14. Rc1 {[%emt 0:00:22]} b6 {[%emt 0:00:18]} 15. b4 {[%emt 0:00:23]} a6 {[%emt 0:02:07]} 16. Nd4 {[%emt 0:00:44]} Bd7 {[%emt 0:01:06]} 17. bxc5 {[%emt 0:00:58]} bxc5 {[%emt 0:00:53]} 18. Rxc5+ {[%emt 0:00:12]} Nc7 {[%emt 0:00:08]} 19. Ngf3 {[%emt 0:02:07]} Kd8 {[%emt 0:00:16]} 20. Bd3 {[%emt 0:00:52]} g6 {[%emt 0:00:27]} 21. O-O {[%emt 0:01:37]} Rb8 {[%emt 0:01:33]} 22. Rfc1 {[%emt 0:01:38]} Rb7 {[%emt 0:00:39]} 23. Ne5 {[%emt 0:02:58]} Bc8 {[%emt 0:01:30]} 24. Bxa6 {[%emt 0:02:48]} Ra7 {[%emt 0:02:45]} 25. Ndc6+ {[%emt 0:02:01]} Ke8 {[%emt 0:00:50]} 26. Nxa7 {[%emt 0:00:20]} Bxa6 {[%emt 0:00:22]} 27. Rxc7 {[%emt 0:00:16]} f6 {[%emt 0:00:14]} 28. Rc8+ {[%emt 0:04:52]} Bxc8 {[%emt 0:00:30]} 29. Rxc8+ {[%emt 0:00:05]} Ke7 {[%emt 0:00:22]} 30. Nac6+ {[%emt 0:00:37]} Kd6 {[%emt 0:00:25]} 31. Rxf8 {[%emt 0:00:24]} fxe5 {[%emt 0:00:06]} 32. Rd8+ {[%emt 0:01:22]} Kxc6 {[%emt 0:00:15]} 33. Kf1 {[%emt 0:00:08]} Kc5 {[%emt 0:00:21]} 34. Ke2 {[%emt 0:00:11]} d4 {[%emt 0:00:24]} 35. exd4+ {[%emt 0:00:08]} exd4 {[%emt 0:00:15]} 36. Kd3 {[%emt 0:00:04]} Kb4 {[%emt 0:00:20]} 37. Rxd4+ {[%emt 0:00:45]} Ka3 {[%emt 0:00:07]} 38. Kc2 {[%emt 0:00:04]} h5 {[%emt 0:00:30]} 39. h4 {[%emt 0:00:44]} g5 {[%emt 0:00:36]} 40. hxg5 {[%emt 0:00:05]} h4 {[%emt 0:00:13]} 41. g6 {[%emt 0:15:06]} h3 {[%emt 0:15:20]} 42. gxh3 {[%emt 0:00:07]} Kxa2 {[%emt 0:00:07]} 43. Ra4# {[%emt 0:00:02]} 1-0

[Event "7th Leer Open-B 2024"]
[Site "Leer"]
[Date "2024.10.31"]
[Round "1.11"]
[White "Ulrich, Helena Irene"]
[Black "Mallek, Peter"]
[Result "1-0"]
[ECO "C50"]
[WhiteElo "1712"]
[BlackElo "1491"]
[Annotator "NA RC"]
[PlyCount "61"]
[EventDate "2024.10.14"]
[EventType "swiss"]
[EventCountry "GER"]
[SourceTitle "playchess.com"]
[Source "ChessBase"]
[SourceQuality "1"]
[TimeControl "40/5400+30:900+30"]

1. e4 {[%emt 0:00:02]} e5 {[%emt 0:00:09]} 2. Nf3 {[%emt 0:00:04]} Nc6 {[%emt 0:00:08]} 3. d4 {[%emt 0:00:04]} exd4 {[%emt 0:00:38]} 4. Nxd4 {[%emt 0:00:04]} d6 {[%emt 0:00:09]} 5. Nc3 {[%emt 0:01:36]} Nf6 {[%emt 0:00:33]} 6. Bc4 {[%emt 0:02:15]} Bd7 {[%emt 0:02:22]} 7. Be3 {[%emt 0:04:12]} Be7 {[%emt 0:00:56]} 8. f3 {[%emt 0:03:44]} O-O {[%emt 0:01:52]} 9. Qd2 {[%emt 0:01:20]} Nxd4 {[%emt 0:01:37]} 10. Bxd4 {[%emt 0:01:01]} c5 {[%emt 0:03:06]} 11. Bxf6 {[%emt 0:11:09]} Bxf6 {[%emt 0:03:14]} 12. Qxd6 {[%emt 0:01:12]} Bxc3+ {[%emt 0:01:11]} 13. bxc3 {[%emt 0:00:17]} Rc8 {[%emt 0:11:24]} 14. O-O {[%emt 0:05:02]} Rc6 {[%emt 0:06:03]} 15. Qd3 {[%emt 0:04:37]} Be6 {[%emt 0:09:24]} 16. Bxe6 {[%emt 0:06:01]} Rxe6 {[%emt 0:01:51]} 17. Rfd1 {[%emt 0:01:23]} Qf6 {[%emt 0:03:00]} 18. Rab1 {[%emt 0:06:12]} Rb6 {[%emt 0:03:54]} 19. Rxb6 {[%emt 0:02:42]} Qxb6 {[%emt 0:01:00]} 20. c4 {[%emt 0:01:07]} a5 $17 {[%emt 0:08:40]} 21. Qb3 {[%emt 0:06:01]} Qc7 {[%emt 0:00:10]} 22. Qb5 {[%emt 0:03:12]} b6 {[%emt 0:04:16]} 23. Qd7 {[%emt 0:06:28]} Qb8 {[%emt 0:01:51]} 24. Qd6 {[%emt 0:01:44]} h6 {[%emt 0:06:22]} 25. e5 {[%emt 0:09:09]} Qa7 {[%emt 0:08:37]} 26. e6 {[%emt 0:02:54]} fxe6 {[%emt 0:01:23]} 27. Qxe6+ {[%emt 0:00:06]} Rf7 {[%emt 0:00:13]} 28. Rd8+ {[%emt 0:01:21]} Kh7 {[%emt 0:00:22]} 29. Qe4+ {[%emt 0:00:12]} g6 {[%emt 0:00:42]} 30. Qe8 {[%emt 0:00:23]} Kg7 {[%emt 0:01:46]} 31. Qh8# {[%emt 0:00:38]} 1-0

[Event "7th Leer Open-B 2024"]
[Site "Leer"]
[Date "2024.10.31"]
[Round "1.11"]
[White "Heeren, Ragnar"]
[Black "Margaryan, Venera"]
[Result "*"]
[ECO "C50"]
[WhiteElo "1503"]
[BlackElo "1712"]
[Annotator "NA RC"]
[PlyCount "24"]
[EventDate "2024.10.14"]
[EventType "swiss"]
[EventCountry "GER"]
[SourceTitle "playchess.com"]
[Source "ChessBase"]
[SourceQuality "1"]
[TimeControl "40/5400+30:900+30"]

1. e4 {[%emt 0:00:02]} e5 {[%emt 0:00:09]} 2. Nf3 {[%emt 0:00:04]} Nc6 {[%emt 0:00:08]} 3. d4 {[%emt 0:00:04]} exd4 {[%emt 0:00:38]} 4. Nxd4 {[%emt 0:00:04]} d6 {[%emt 0:00:09]} 5. Nc3 {[%emt 0:01:36]} Nf6 {[%emt 0:00:33]} 6. Bc4 {[%emt 0:02:15]} Bd7 {[%emt 0:02:22]} 7. Be3 {[%emt 0:04:12]} Be7 {[%emt 0:00:56]} 8. f3 {[%emt 0:03:44]} O-O {[%emt 0:01:52]} 9. Qd2 {[%emt 0:01:20]} Nxd4 {[%emt 0:01:37]} 10. Bxd4 {[%emt 0:01:01]} c5 {[%emt 0:03:06]} 11. Bxf6 {[%emt 0:11:09]} Bxf6 {[%emt 0:03:14]} 12. Qxd6 {[%emt 0:01:12]} Bxc3+ {[%emt 0:01:11]} *

[Event "7th Leer Open-B 2024"]
[Site "Leer"]
[Date "2024.10.31"]
[Round "1.12"]
[White "Ulrich, Helena Irene"]
[Black "Mallek, Peter"]
[Result "*"]
[ECO "D00"]
[WhiteElo "1712"]
[BlackElo "1491"]
[Annotator "NA RC"]
[PlyCount "36"]
[EventDate "2024.10.14"]
[EventType "swiss"]
[EventCountry "GER"]
[SourceTitle "playchess.com"]
[Source "ChessBase"]
[SourceQuality "1"]
[TimeControl "40/5400+30:900+30"]

1. d4 {[%emt 0:00:03]} d5 {[%emt 0:00:07]} 2. Nc3 {[%emt 0:00:07]} Nf6 {[%emt 0:00:05]} 3. Bf4 {[%emt 0:00:08]} c6 {[%emt 0:00:04]} 4. e3 {[%emt 0:00:17]} Bf5 {[%emt 0:00:07]} 5. f3 {[%emt 0:00:13]} h6 {[%emt 0:00:04]} 6. g4 {[%emt 0:00:13]} Bh7 {[%emt 0:00:05]} 7. h4 {[%emt 0:01:03]} Nbd7 {[%emt 0:00:41]} 8. Bd3 {[%emt 0:00:36]} Bxd3 {[%emt 0:00:09]} 9. Qxd3 {[%emt 0:00:14]} e6 {[%emt 0:00:25]} 10. Nge2 {[%emt 0:00:45]} Nb6 {[%emt 0:00:07]} 11. O-O-O {[%emt 0:02:08]} Bd6 {[%emt 0:00:35]} 12. g5 {[%emt 0:04:12]} Nh5 {[%emt 0:00:07]} 13. g6 {[%emt 0:02:11]} f6 {[%emt 0:00:06]} 14. Rhg1 {[%emt 0:05:11]} Qc7 {[%emt 0:01:38]} 15. Bxd6 {[%emt 0:01:29]} Qxd6 {[%emt 0:00:20]} 16. e4 {[%emt 0:04:35]} Nc4 {[%emt 0:00:41]} 17. Na4 {[%emt 1:15:35]} b5 {[%emt 0:03:28]} 18. Nc5 {[%emt 0:00:13]} a5 {[%emt 0:00:31]} *